fUST/lending_fUST_20250609
["ID","MTS","AMOUNT","RATE_DAILY","PERIOD"]
[365023912,1749409840560,-265.9579736,0.00020586,2]
[365023913,1749409840570,-440.0,0.00020586,2]
[365023914,1749409840579,-440.0,0.00020586,2]
[365023915,1749409840589,-440.0,0.00020586,2]
[365023916,1749409840598,-440.0,0.00020586,2]
[365023917,1749409840609,-410.0,0.00020586,2]
[365023918,1749409840618,-440.0,0.00020586,2]
[365023919,1749409840629,-440.0,0.00020586,2]
[365023920,1749409840639,-440.0,0.00020586,2]
[365023921,1749409840648,-440.0,0.00020586,2]
[365023922,1749409840658,-440.0,0.00020586,2]
[365023923,1749409840667,-440.0,0.00020586,2]
[365023924,1749409840677,-440.0,0.00020586,2]
[365023925,1749409840687,-386.46763862,0.00020586,2]
[365023928,1749409840735,-440.0,0.00020586,2]
[365023929,1749409840758,-440.0,0.00020586,2]
[365023930,1749409840778,-440.0,0.00020586,2]
[365023931,1749409840799,-440.0,0.00020586,2]
[365023932,1749409840823,-307.08,0.00020586,2]
[365023933,1749409840847,-434.82409152,0.00020586,2]
[365023934,1749409840872,-240.90046319,0.00020586,2]
[365023935,1749409840895,-440.0,0.00020586,2]
[365023936,1749409840919,-440.0,0.00020586,2]
[365023937,1749409840944,-440.0,0.00020586,2]
[365023938,1749409840970,-440.0,0.00020586,2]
[365023939,1749409840997,-440.0,0.00020586,2]
[365023940,1749409841024,-400.0,0.00020586,2]
[365023941,1749409841034,-440.0,0.00020586,2]
[365023942,1749409841043,-440.0,0.00020586,2]
[365023943,1749409841052,-440.0,0.00020586,2]
[365023944,1749409841061,-440.0,0.00020586,2]
[365023945,1749409841070,-440.0,0.00020586,2]
[365023946,1749409841079,-400.0,0.00020586,2]
[365023947,1749409841088,-400.0,0.00020586,2]
[365023948,1749409841097,-440.0,0.00020586,2]
[365023949,1749409841106,-440.0,0.00020586,2]
[365023950,1749409841115,-440.0,0.00020586,2]
[365023951,1749409841124,-401.50454324,0.00020586,2]
[365023952,1749409841134,-440.0,0.00020586,2]
[365023953,1749409841143,-392.62903522,0.00020586,2]
[365023954,1749409841152,-440.0,0.00020586,2]
[365023955,1749409841163,-440.0,0.00020586,2]
[365023956,1749409841172,-454.42560679,0.00020586,2]
[365023957,1749409841181,-440.0,0.00020586,2]
[365023958,1749409841192,-440.0,0.00020586,2]
[365023959,1749409841202,-440.0,0.00020586,2]
[365023960,1749409841211,-440.0,0.00020586,2]
[365023961,1749409841221,-440.0,0.00020586,2]
[365023962,1749409841231,-440.0,0.00020586,2]
[365023963,1749409841241,-280.0,0.00020586,2]
[365023964,1749409841250,-440.0,0.00020586,2]
[365023965,1749409841259,-315.77611539,0.00020586,2]
[365023966,1749409841270,-440.0,0.00020586,2]
[365023967,1749409841280,-440.0,0.00020586,2]
[365023968,1749409841291,-440.0,0.00020586,2]
[365023969,1749409841301,-440.0,0.00020586,2]
[365023970,1749409841311,-151.0,0.00020586,2]
[365023971,1749409841320,-440.0,0.00020586,2]
[365023972,1749409841330,-440.0,0.00020586,2]
[365023973,1749409841339,-151.0,0.00020586,2]
[365023974,1749409841349,-151.0,0.00020586,2]
[365023975,1749409841358,-225.10810695,0.00020588,2]
[365023976,1749409841368,-410.0,0.00020588,2]
[365023977,1749409841378,-440.0,0.00020588,2]
[365023978,1749409841388,-440.0,0.00020588,2]
[365023979,1749409841397,-440.0,0.00020588,2]
[365023980,1749409841407,-440.0,0.00020588,2]
[365023981,1749409841416,-380.0,0.00020588,2]
[365023982,1749409841426,-440.0,0.00020588,2]
[365023983,1749409841435,-319.93,0.000206,2]
[365023984,1749409841445,-1000.0,0.00020621,2]
[365023985,1749409841455,-1000.0,0.00020621,2]
[365023986,1749409841464,-1300.0,0.00020808,2]
[365023987,1749409841474,-440.0,0.00020858,2]
[365023988,1749409841483,-440.0,0.00020858,2]
[365023989,1749409841493,-995.29,0.00020858,2]
[365023990,1749409841502,-1300.22,0.00020858,2]
[365023991,1749409841512,-1127.97,0.00020858,2]
[365023992,1749409841521,-440.0,0.00020858,2]
[365023993,1749409841531,-440.0,0.00020858,2]
[365023994,1749409841540,-440.0,0.00020858,2]
[365023995,1749409841550,-1717.66,0.00020858,2]
[365023996,1749409841560,-440.0,0.00020858,2]
[365023997,1749409841570,-990.62,0.00020858,2]
[365023998,1749409841581,-1359.79,0.00020858,2]
[365023999,1749409841603,-440.0,0.00020858,2]
[365024000,1749409841615,-440.0,0.00020858,2]
[365024001,1749409841625,-440.0,0.00020858,2]
[365024002,1749409841635,-440.0,0.00020858,2]
[365024003,1749409841645,-440.0,0.00020858,2]
[365024004,1749409841656,-440.0,0.00020859,2]
[365024005,1749409841667,-440.0,0.00020859,2]
[365024006,1749409841677,-440.0,0.00020859,2]
[365024007,1749409841687,-440.0,0.00020859,2]
[365024008,1749409841696,-152.497859,0.00020859,2]
[365024009,1749409841706,-151.0,0.00020859,2]
[365024010,1749409841716,-440.0,0.00020859,2]
[365024011,1749409841728,-440.0,0.00020859,2]
[365024012,1749409841738,-440.0,0.00020859,2]
[365024013,1749409841751,-440.0,0.00020859,2]
[365024014,1749409841765,-995.49,0.00020859,2]
[365024015,1749409841775,-440.0,0.00020859,2]
[365024016,1749409841784,-440.0,0.00020859,2]
[365024017,1749409841795,-1896.07,0.00020859,2]
[365024018,1749409841806,-440.0,0.00020859,2]
[365024019,1749409841817,-151.0,0.00020859,2]
[365024020,1749409841828,-440.0,0.00020859,2]
[365024021,1749409841839,-189.00130533,0.00020859,2]
[365024022,1749409841849,-440.0,0.00020859,2]
[365024023,1749409841859,-440.0,0.00020859,2]
[365024024,1749409841869,-440.0,0.00020859,2]
[365024025,1749409841879,-440.0,0.00020859,2]
[365024026,1749409841891,-440.0,0.00020859,2]
[365024027,1749409841901,-440.0,0.00020859,2]
[365024028,1749409841911,-1222.95,0.00020859,2]
[365024029,1749409841922,-440.0,0.00020859,2]
[365024030,1749409841932,-440.0,0.00020859,2]
[365024031,1749409841942,-440.0,0.00020859,2]
[365024032,1749409841953,-440.0,0.00020859,2]
[365024033,1749409841963,-440.0,0.00020859,2]
[365024034,1749409841973,-440.0,0.00020859,2]
[365024035,1749409841983,-440.0,0.00020859,2]
[365024036,1749409841994,-440.0,0.0002086,2]
[365024037,1749409842004,-440.0,0.0002086,2]
[365024038,1749409842014,-440.0,0.0002086,2]
[365024039,1749409842024,-440.0,0.0002086,2]
[365024040,1749409842036,-292.43,0.0002086,2]
[365024041,1749409842047,-440.0,0.0002086,2]
[365024042,1749409842057,-440.0,0.0002086,2]
[365024043,1749409842067,-188.0545317,0.0002086,2]
[365024044,1749409842078,-440.0,0.0002086,2]
[365024045,1749409842087,-440.0,0.0002086,2]
[365024046,1749409842098,-440.0,0.0002086,2]
[365024047,1749409842108,-520.94,0.0002086,2]
[365024048,1749409842118,-440.0,0.0002086,2]
[365024049,1749409842128,-440.0,0.0002086,2]
[365024050,1749409842139,-440.0,0.0002086,2]
[365024051,1749409842148,-440.0,0.0002086,2]
[365024052,1749409842159,-440.0,0.0002086,2]
[365024053,1749409842170,-440.0,0.0002086,2]
[365024054,1749409842180,-440.0,0.0002086,2]
[365024055,1749409842190,-546.37957184,0.0002086,2]
[365024056,1749409842200,-440.0,0.0002086,2]
[365024057,1749409842215,-440.0,0.0002086,2]
[365024058,1749409842225,-440.0,0.0002086,2]
[365024059,1749409842236,-440.0,0.0002086,2]
[365024060,1749409842246,-151.0,0.0002086,2]
[365024061,1749409842256,-440.0,0.0002086,2]
[365024062,1749409842267,-440.0,0.0002086,2]
[365024063,1749409842277,-440.0,0.0002086,2]
[365024064,1749409842287,-440.0,0.0002086,2]
[365024065,1749409842298,-440.0,0.0002086,2]
[365024066,1749409842309,-440.0,0.0002086,2]
[365024067,1749409842319,-203.17,0.0002086,2]
[365024068,1749409842330,-266.869812,0.0002086,2]
[365024069,1749409842341,-440.0,0.0002086,2]
[365024070,1749409842352,-440.0,0.0002086,2]
[365024071,1749409842362,-440.0,0.0002086,2]
[365024072,1749409842373,-340.0,0.0002086,2]
[365024073,1749409842383,-440.0,0.0002086,2]
[365024074,1749409842393,-151.0,0.0002086,2]
[365024075,1749409842403,-440.0,0.0002086,2]
[365024076,1749409842414,-440.0,0.00020862,2]
[365024077,1749409842424,-527.81,0.00020862,2]
[365024078,1749409842435,-440.0,0.00020862,2]
[365024079,1749409842445,-440.0,0.00020862,2]
[365024080,1749409842456,-151.0,0.000209,2]
[365024081,1749409842466,-151.0,0.000209,2]
[365024082,1749409842476,-151.0,0.000209,2]
[365024083,1749409842487,-873.366947,0.000209,2]
[365024084,1749409842497,-873.366947,0.000209,2]
[365024085,1749409842507,-151.0,0.000209,2]
[365024086,1749409842517,-151.0,0.000209,2]
[365024087,1749409842527,-13851.61161088,0.000209,4]
[365024088,1749409842538,-1000.0,0.00020921,2]
[365024089,1749409842548,-500.0,0.00020921,2]
[365024090,1749409842559,-501.61992717,0.00020921,2]
[365024091,1749409842576,-500.0,0.00020921,2]
[365024092,1749409842587,-1000.0,0.00020921,2]
[365024093,1749409842598,-151.0,0.0002099,2]
[365024094,1749409842610,-504.21707405,0.00020991,2]
[365024095,1749409842620,-1000.0,0.00021,21]
[365024096,1749409842630,-7211.14631333,0.00021038,4]
[365024113,1749409843343,-816.1177163,0.00019118,2]
[365024114,1749409843354,-816.1177163,0.00019118,2]
[365024115,1749409843364,-816.1177163,0.00019118,2]
[365024116,1749409843374,-816.1177163,0.00019118,2]
[365024117,1749409843384,-816.1177163,0.00019118,2]
[365024118,1749409843394,-816.1177163,0.00019118,2]
[365024119,1749409843405,-816.1177163,0.00019118,2]
[365024120,1749409843415,-816.1177163,0.00019118,2]
[365024121,1749409843428,-816.1177163,0.00019118,2]
[365024122,1749409843438,-568.07,0.00020036,2]
[365024123,1749409843448,-6640.46529748,0.00021038,4]
[365024124,1749409843459,-160.065807,0.00021038,2]
[365024125,1749409843469,-160.065807,0.00021038,2]
[365024126,1749409843481,-151.0,0.00021038,2]
[365024127,1749409843491,-294.221276,0.00021038,2]
[365024128,1749409843501,-1595.0,0.00021047,2]
[365024129,1749409843512,-440.0,0.00021132,2]
[365024130,1749409843522,-440.0,0.00021132,2]
[365024131,1749409843534,-995.29,0.00021132,2]
[365024132,1749409843547,-1300.22,0.00021132,2]
[365024133,1749409843558,-1127.97,0.00021132,2]
[365024134,1749409843717,-419.67,0.00021132,2]
[365024135,1749409843735,-440.0,0.00021132,2]
[365024136,1749409843746,-440.0,0.00021132,2]
[365024137,1749409843756,-1717.66,0.00021132,2]
[365024138,1749409843770,-440.0,0.00021132,2]
[365024139,1749409843779,-990.62,0.00021132,2]
[365024140,1749409843789,-1359.79,0.00021132,2]
[365024141,1749409843798,-440.0,0.00021132,2]
[365024142,1749409843809,-440.0,0.00021132,2]
[365024143,1749409843818,-440.0,0.00021132,2]
[365024144,1749409843827,-440.0,0.00021132,2]
[365024145,1749409843838,-440.0,0.00021132,2]
[365024146,1749409843847,-440.0,0.00021133,2]
[365024147,1749409843857,-440.0,0.00021133,2]
[365024148,1749409843866,-440.0,0.00021133,2]
[365024149,1749409843876,-440.0,0.00021133,2]
[365024150,1749409843885,-440.0,0.00021133,2]
[365024151,1749409843894,-440.0,0.00021133,2]
[365024152,1749409843905,-995.49,0.00021133,2]
[365024153,1749409843914,-440.0,0.00021133,2]
[365024154,1749409843923,-440.0,0.00021133,2]
[365024155,1749409843932,-1896.07,0.00021133,2]
[365024156,1749409843941,-440.0,0.00021133,2]
[365024157,1749409843951,-440.0,0.00021133,2]
[365024158,1749409843961,-440.0,0.00021133,2]
[365024159,1749409843970,-440.0,0.00021133,2]
[365024160,1749409843980,-440.0,0.00021133,2]
[365024161,1749409843990,-440.0,0.00021133,2]
[365024162,1749409843999,-440.0,0.00021133,2]
[365024163,1749409844009,-440.0,0.00021133,2]
[365024164,1749409844019,-1222.95,0.00021133,2]
[365024165,1749409844028,-440.0,0.00021133,2]
[365024166,1749409844038,-500.12,0.00021133,2]
[365024167,1749409844048,-440.0,0.00021133,2]
[365024168,1749409844058,-440.0,0.00021133,2]
[365024169,1749409844067,-440.0,0.00021133,2]
[365024170,1749409844077,-440.0,0.00021133,2]
[365024171,1749409844086,-440.0,0.00021133,2]
[365024172,1749409844096,-440.0,0.00021134,2]
[365024173,1749409844106,-440.0,0.00021134,2]
[365024174,1749409844115,-440.0,0.00021134,2]
[365024175,1749409844124,-440.0,0.00021134,2]
[365024176,1749409844134,-440.0,0.00021134,2]
[365024177,1749409844143,-440.0,0.00021134,2]
[365024178,1749409844153,-440.0,0.00021134,2]
[365024179,1749409844162,-440.0,0.00021134,2]
[365024180,1749409844172,-440.0,0.00021134,2]
[365024181,1749409844182,-440.0,0.00021134,2]
[365024182,1749409844193,-440.0,0.00021134,2]
[365024183,1749409844203,-440.0,0.00021134,2]
[365024184,1749409844213,-440.0,0.00021134,2]
[365024185,1749409844223,-440.0,0.00021134,2]
[365024186,1749409844235,-440.0,0.00021134,2]
[365024187,1749409844245,-440.0,0.00021134,2]
[365024188,1749409844255,-440.0,0.00021134,2]
[365024189,1749409844266,-440.0,0.00021134,2]
[365024190,1749409844277,-440.0,0.00021134,2]
[365024191,1749409844288,-440.0,0.00021134,2]
[365024192,1749409844300,-440.0,0.00021134,2]
[365024193,1749409844310,-151.0,0.00021134,2]
[365024194,1749409844322,-440.0,0.00021134,2]
[365024195,1749409844332,-440.0,0.00021134,2]
[365024196,1749409844343,-151.0,0.00021134,2]
[365024197,1749409844352,-410.0,0.00021134,2]
[365024198,1749409844363,-440.0,0.00021134,2]
[365024199,1749409844373,-440.0,0.00021134,2]
[365024200,1749409844382,-440.0,0.00021134,2]
[365024201,1749409844392,-440.0,0.00021134,2]
[365024202,1749409844402,-440.0,0.00021134,2]
[365024203,1749409844412,-3170.7,0.00021136,2]
[365024204,1749409844421,-3170.7,0.00021136,2]
[365024205,1749409844431,-3170.7,0.00021136,2]
[365024206,1749409844442,-3170.6,0.00021136,2]
[365024207,1749409844452,-390.0,0.00021136,2]
[365024208,1749409844462,-440.0,0.00021136,2]
[365024209,1749409844471,-236.44762924,0.00021136,2]
[365024210,1749409844481,-1000.0,0.00021168,2]
[365024211,1749409844491,-500.0,0.00021168,2]
[365024212,1749409844501,-13851.61161081,0.00021176,4]
[365024213,1749409844511,-151.0,0.00021176,2]
[365024214,1749409844521,-221.263539,0.00021176,2]
[365024215,1749409844531,-151.0,0.00021176,2]
[365024216,1749409844541,-151.0,0.00021176,2]
[365024217,1749409844550,-220.742564,0.00021176,2]
[365024218,1749409844560,-151.0,0.00021176,2]
[365024219,1749409844570,-151.0,0.00021176,2]
[365024220,1749409844580,-13851.61161081,0.00021314,5]
[365024221,1749409844589,-151.0,0.00021314,2]
[365024222,1749409844599,-151.0,0.00021314,2]
[365024223,1749409844608,-151.0,0.00021314,2]
[365024224,1749409844618,-873.366947,0.00021314,2]
[365024225,1749409844627,-873.366947,0.00021314,2]
[365024226,1749409844637,-151.0,0.00021314,2]
[365024227,1749409844647,-151.0,0.00021314,2]
[365024228,1749409844657,-440.0,0.00021406,2]
[365024229,1749409844668,-440.0,0.00021406,2]
[365024230,1749409844677,-995.29,0.00021406,2]
[365024231,1749409844687,-1300.22,0.00021406,2]
[365024232,1749409844698,-1127.97,0.00021406,2]
[365024233,1749409844709,-440.0,0.00021406,2]
[365024234,1749409844719,-440.0,0.00021406,2]
[365024235,1749409844730,-1717.66,0.00021406,2]
[365024236,1749409844740,-990.62,0.00021406,2]
[365024237,1749409844750,-1359.79,0.00021406,2]
[365024238,1749409844760,-440.0,0.00021406,2]
[365024239,1749409844772,-440.0,0.00021406,2]
[365024240,1749409844782,-440.0,0.00021406,2]
[365024241,1749409844792,-440.0,0.00021406,2]
[365024242,1749409844801,-440.0,0.00021406,2]
[365024243,1749409844813,-440.0,0.00021407,2]
[365024244,1749409844822,-440.0,0.00021407,2]
[365024245,1749409844833,-440.0,0.00021407,2]
[365024246,1749409844845,-440.0,0.00021407,2]
[365024247,1749409844855,-440.0,0.00021407,2]
[365024248,1749409844865,-440.0,0.00021407,2]
[365024249,1749409844876,-995.49,0.00021407,2]
[365024250,1749409844886,-440.0,0.00021407,2]
[365024251,1749409844896,-440.0,0.00021407,2]
[365024252,1749409844906,-1896.07,0.00021407,2]
[365024253,1749409844915,-440.0,0.00021407,2]
[365024254,1749409844925,-440.0,0.00021407,2]
[365024255,1749409844936,-440.0,0.00021407,2]
[365024256,1749409844946,-440.0,0.00021407,2]
[365024257,1749409844956,-440.0,0.00021407,2]
[365024258,1749409844967,-440.0,0.00021407,2]
[365024259,1749409844977,-1222.95,0.00021407,2]
[365024260,1749409844986,-440.0,0.00021407,2]
[365024261,1749409844996,-440.0,0.00021407,2]
[365024262,1749409845005,-440.0,0.00021407,2]
[365024263,1749409845015,-440.0,0.00021407,2]
[365024264,1749409845025,-440.0,0.00021407,2]
[365024265,1749409845035,-440.0,0.00021407,2]
[365024266,1749409845045,-151.0,0.00021407,2]
[365024267,1749409845055,-440.0,0.00021408,2]
[365024268,1749409845065,-193.231427,0.00021408,2]
[365024269,1749409845074,-440.0,0.00021408,2]
[365024270,1749409845084,-193.231427,0.00021408,2]
[365024271,1749409845094,-440.0,0.00021408,2]
[365024272,1749409845103,-370.0,0.00021408,2]
[365024273,1749409845113,-440.0,0.00021408,2]
[365024274,1749409845123,-151.0,0.00021408,2]
[365024275,1749409845133,-440.0,0.00021408,2]
[365024276,1749409845143,-440.0,0.00021408,2]
[365024277,1749409845152,-440.0,0.00021408,2]
[365024278,1749409845162,-151.370937,0.00021408,2]
[365024279,1749409845171,-440.0,0.00021408,2]
[365024280,1749409845180,-440.0,0.00021408,2]
[365024281,1749409845191,-160.065807,0.00021408,2]
[365024282,1749409845200,-160.065807,0.00021408,2]
[365024283,1749409845210,-440.0,0.00021408,2]
[365024284,1749409845219,-440.0,0.00021408,2]
[365024285,1749409845230,-279.58,0.00021408,2]
[365024286,1749409845239,-390.0,0.00021408,2]
[365024287,1749409845248,-440.0,0.00021408,2]
[365024288,1749409845258,-3470.944811,0.00021408,2]
[365024289,1749409845267,-3470.944811,0.00021408,2]
[365024290,1749409845278,-440.0,0.00021408,2]
[365024291,1749409845287,-330.58584117,0.00021408,2]
[365024292,1749409845297,-440.0,0.00021408,2]
[365024293,1749409845307,-151.0,0.00021408,2]
[365024294,1749409845316,-440.0,0.00021408,2]
[365024295,1749409845325,-440.0,0.00021408,2]
[365024296,1749409845336,-440.0,0.00021408,2]
[365024297,1749409845346,-440.0,0.00021408,2]
[365024298,1749409845356,-440.0,0.00021408,2]
[365024299,1749409845365,-440.0,0.0002141,2]
[365024300,1749409845375,-13851.61161081,0.00021452,5]
[365024301,1749409845386,-151.0,0.00021452,2]
[365024302,1749409845395,-1008.34367556,0.00021468,2]
[365024303,1749409845406,-503.32066576,0.00021468,2]
[365024304,1749409845417,-504.21707405,0.00021516,2]
[365024305,1749409845426,-13851.61161081,0.0002159,5]
[365024306,1749409845437,-151.0,0.0002159,2]
[365024307,1749409845447,-151.0,0.0002159,2]
[365024308,1749409845456,-151.0,0.0002159,2]
[365024309,1749409845466,-151.0,0.0002159,2]
[365024310,1749409845476,-151.0,0.0002159,2]
[365024311,1749409845486,-500.0,0.00021629,2]
[365024312,1749409845495,-500.0,0.00021629,2]
[365024313,1749409845505,-500.0,0.00021629,2]
[365024314,1749409845515,-500.0,0.00021629,2]
[365024315,1749409845524,-500.0,0.00021629,2]
[365024316,1749409845534,-500.0,0.00021629,2]
[365024317,1749409845544,-500.0,0.00021629,2]
[365024318,1749409845554,-500.0,0.00021629,2]
[365024319,1749409845564,-500.0,0.00021629,2]
[365024320,1749409845574,-500.0,0.00021629,2]
[365024321,1749409845583,-500.0,0.00021629,2]
[365024322,1749409845593,-433.57904682,0.00021629,2]
[365024323,1749409845603,-440.0,0.0002168,2]
[365024324,1749409845612,-995.29,0.0002168,2]
[365024325,1749409845622,-1300.22,0.0002168,2]
[365024326,1749409845631,-1127.97,0.0002168,2]
[365024327,1749409845641,-440.0,0.0002168,2]
[365024328,1749409845651,-440.0,0.0002168,2]
[365024329,1749409845661,-1717.66,0.0002168,2]
[365024330,1749409845671,-990.62,0.0002168,2]
[365024331,1749409845680,-1359.79,0.0002168,2]
[365024332,1749409845689,-440.0,0.0002168,2]
[365024333,1749409845699,-440.0,0.0002168,2]
[365024334,1749409845708,-440.0,0.0002168,2]
[365024335,1749409845717,-310.0,0.0002168,2]
[365024336,1749409845728,-440.0,0.0002168,2]
[365024337,1749409845738,-440.0,0.00021681,2]
[365024338,1749409845748,-440.0,0.00021681,2]
[365024339,1749409845759,-521.15,0.00021681,2]
[365024341,1749409845772,-440.0,0.00021681,2]
[365024342,1749409845781,-440.0,0.00021681,2]
[365024343,1749409845791,-995.49,0.00021681,2]
[365024344,1749409845801,-440.0,0.00021681,2]
[365024346,1749409845810,-440.0,0.00021681,2]
[365024347,1749409845819,-1896.07,0.00021681,2]
[365024348,1749409845829,-440.0,0.00021681,2]
[365024349,1749409845840,-440.0,0.00021681,2]
[365024350,1749409845850,-310.3,0.00021681,2]
[365024351,1749409845859,-378.44,0.00021681,2]
[365024353,1749409845869,-440.0,0.00021681,2]
[365024355,1749409845879,-1222.95,0.00021681,2]
[365024356,1749409845889,-440.0,0.00021681,2]
[365024357,1749409845899,-440.0,0.00021681,2]
[365024358,1749409845909,-440.0,0.00021681,2]
[365024359,1749409845919,-440.0,0.00021681,2]
[365024360,1749409845929,-440.0,0.00021681,2]
[365024361,1749409845939,-440.0,0.00021682,2]
[365024362,1749409845948,-440.0,0.00021682,2]
[365024363,1749409845958,-440.0,0.00021682,2]
[365024364,1749409845967,-440.0,0.00021682,2]
[365024365,1749409845976,-285.78953446,0.00021682,2]
[365024366,1749409845986,-360.0,0.00021682,2]
[365024367,1749409845997,-440.0,0.00021682,2]
[365024368,1749409846006,-440.0,0.00021682,2]
[365024369,1749409846016,-440.0,0.00021682,2]
[365024370,1749409846026,-440.0,0.00021682,2]
[365024371,1749409846036,-440.0,0.00021682,2]
[365024372,1749409846046,-440.0,0.00021682,2]
[365024373,1749409846056,-440.0,0.00021682,2]
[365024374,1749409846066,-440.0,0.00021682,2]
[365024375,1749409846076,-309.06383892,0.00021682,2]
[365024376,1749409846086,-151.0,0.00021682,2]
[365024377,1749409846095,-440.0,0.00021684,2]
[365024378,1749409846105,-500.0,0.00021718,2]
[365024379,1749409846115,-13851.61161081,0.00021728,5]
[365024380,1749409846125,-151.0,0.00021728,2]
[365024381,1749409846135,-151.0,0.00021728,2]
[365024382,1749409846145,-151.0,0.00021728,2]
[365024383,1749409846155,-151.0,0.00021728,2]
[365024384,1749409846167,-151.0,0.00021728,2]
[365024385,1749409846179,-151.0,0.00021728,2]
[365024386,1749409846192,-873.366947,0.00021728,2]
[365024387,1749409846210,-873.366947,0.00021728,2]
[365024388,1749409846229,-151.0,0.00021728,2]
[365024389,1749409846357,-151.0,0.00021728,2]
[365024390,1749409846379,-420.0,0.00021815,2]
[365024391,1749409846404,-303.0,0.00021815,2]
[365024392,1749409846427,-420.0,0.00021815,2]
[365024393,1749409846448,-151.0,0.0002185,2]
[365024394,1749409846471,-152.148333,0.0002185,2]
[365024395,1749409846495,-151.0,0.0002185,2]
[365024396,1749409846516,-151.0,0.0002185,2]
[365024397,1749409846539,-151.0,0.0002185,2]
[365024398,1749409846560,-193.231427,0.0002185,2]
[365024399,1749409846581,-193.231427,0.0002185,2]
[365024400,1749409846602,-151.0,0.0002185,2]
[365024401,1749409846625,-169.111676,0.0002185,2]
[365024402,1749409846649,-151.0,0.0002185,2]
[365024403,1749409846674,-3470.944811,0.0002185,2]
[365024404,1749409846698,-3470.944811,0.0002185,2]
[365024405,1749409846720,-151.0,0.0002185,2]
[365024406,1749409846742,-13851.61161081,0.00021866,6]
[365024407,1749409846755,-3000.0,0.000219,2]
[365024408,1749409846767,-1300.0,0.00021904,2]
[365024409,1749409846778,-3000.0,0.0002191,2]
[365024410,1749409846787,-3000.0,0.0002192,2]
[365024411,1749409846797,-1680.0,0.0002192,2]
[365024412,1749409846807,-3000.0,0.0002193,2]
[365024413,1749409846817,-3000.0,0.0002194,2]
[365024414,1749409846827,-3000.0,0.0002195,2]
[365024415,1749409846837,-440.0,0.00021954,4]
[365024416,1749409846847,-995.29,0.00021954,4]
[365024417,1749409846858,-1300.22,0.00021954,4]
[365024418,1749409846867,-1127.97,0.00021954,4]
[365024419,1749409846877,-440.0,0.00021954,4]
[365024420,1749409846886,-1717.66,0.00021954,4]
[365024421,1749409846896,-990.62,0.00021954,4]
[365024422,1749409846906,-1359.79,0.00021954,4]
[365024423,1749409846915,-440.0,0.00021954,4]
[365024424,1749409846925,-440.0,0.00021954,4]
[365024425,1749409846935,-440.0,0.00021954,4]
[365024426,1749409846945,-160.065807,0.00021955,7]
[365024427,1749409846954,-160.065807,0.00021955,7]
[365024428,1749409846964,-440.0,0.00021955,4]
[365024429,1749409846974,-440.0,0.00021955,4]
[365024430,1749409846984,-440.0,0.00021955,4]
[365024431,1749409846994,-995.49,0.00021955,4]
[365024432,1749409847003,-440.0,0.00021955,4]
[365024433,1749409847013,-440.0,0.00021955,4]